[Event "Late-Titled-Tuesday-Blitz-January-30-2024"]
[Site "Chess.com"]
[Date "2024.01.30"]
[Round "4"]
[White "Herman-NY"]
[Black "Ali_rastbod"]
[Result "0-1"]
[WhiteElo "2491"]
[BlackElo "2690"]
[TimeControl "180+1"]
[EndTime "14:39:08 PST"]
[Termination "Ali_rastbod won by resignation"]

1. e4 {[%clk 0:02:58.1]} 1... c5 {[%clk 0:03:00.9]} 2. Nf3 {[%clk 0:02:57.9]}
2... g6 {[%clk 0:02:58.2]} 3. d4 {[%clk 0:02:57.1]} 3... cxd4 {[%clk 0:02:58.1]}
4. Nxd4 {[%clk 0:02:57.8]} 4... Nf6 {[%clk 0:02:56.8]} 5. Nc3 {[%clk 0:02:57.9]}
5... Nc6 {[%clk 0:02:55.3]} 6. Be3 {[%clk 0:02:52.5]} 6... Bg7 {[%clk
0:02:53.5]} 7. Nb3 {[%clk 0:02:48.9]} 7... O-O {[%clk 0:02:41.4]} 8. Qd2 {[%clk
0:02:46.6]} 8... d6 {[%clk 0:02:39.7]} 9. f3 {[%clk 0:02:45.5]} 9... Be6 {[%clk
0:02:39.1]} 10. O-O-O {[%clk 0:02:44.8]} 10... Rc8 {[%clk 0:02:39.2]} 11. Kb1
{[%clk 0:02:44.9]} 11... Ne5 {[%clk 0:02:36.8]} 12. Nd4 {[%clk 0:02:13]} 12...
Bc4 {[%clk 0:02:35.9]} 13. b3 {[%clk 0:01:55.2]} 13... Bxf1 {[%clk 0:02:31.8]}
14. Rhxf1 {[%clk 0:01:56.1]} 14... d5 {[%clk 0:02:00.4]} 15. f4 {[%clk
0:01:49.1]} 15... Neg4 {[%clk 0:01:53.2]} 16. e5 {[%clk 0:01:49.4]} 16... Nxe3
{[%clk 0:01:50.2]} 17. Qxe3 {[%clk 0:01:46.2]} 17... Ng4 {[%clk 0:01:47.2]} 18.
Qd3 {[%clk 0:01:37.3]} 18... Qa5 {[%clk 0:01:43.7]} 19. Nce2 {[%clk 0:01:21.6]}
19... Nxh2 {[%clk 0:01:24.2]} 20. Rh1 {[%clk 0:01:20.6]} 20... Ng4 {[%clk
0:01:24.1]} 21. Qh3 {[%clk 0:01:15]} 21... h5 {[%clk 0:01:23.4]} 22. Qf3 {[%clk
0:00:46.6]} 22... e6 {[%clk 0:01:22.2]} 23. Rd3 {[%clk 0:00:42.2]} 23... Rc5
{[%clk 0:00:48.7]} 24. Ng3 {[%clk 0:00:38.3]} 24... Rfc8 {[%clk 0:00:41.4]} 25.
Nxh5 {[%clk 0:00:29.9]} 25... gxh5 {[%clk 0:00:42.3]} 26. Rxh5 {[%clk
0:00:29.4]} 26... Rc3 {[%clk 0:00:31.1]} 27. Rg5 {[%clk 0:00:09.7]} 27... Rxd3
{[%clk 0:00:28.3]} 28. Qxd3 {[%clk 0:00:10.2]} 28... Qe1+ {[%clk 0:00:27.7]} 29.
Kb2 {[%clk 0:00:10.2]} 29... Qh4 {[%clk 0:00:26.9]} 30. Nf3 {[%clk 0:00:06.2]}
30... Qh7 {[%clk 0:00:13.7]} 31. Qxh7+ {[%clk 0:00:05.6]} 31... Kxh7 {[%clk
0:00:14.6]} 32. Rxg4 {[%clk 0:00:06.4]} 32... Bh6 {[%clk 0:00:13.6]} 33. g3
{[%clk 0:00:06.1]} 33... b5 {[%clk 0:00:11.2]} 34. c3 {[%clk 0:00:05.5]} 34...
Bf8 {[%clk 0:00:11.4]} 35. a3 {[%clk 0:00:04.5]} 35... a5 {[%clk 0:00:10.7]} 36.
b4 {[%clk 0:00:04.6]} 36... axb4 {[%clk 0:00:10.8]} 37. axb4 {[%clk 0:00:05.5]}
37... Rc4 {[%clk 0:00:11]} 38. Ng5+ {[%clk 0:00:04.8]} 38... Kg6 {[%clk
0:00:11.2]} 39. Nf3+ {[%clk 0:00:03.5]} 39... Kf5 {[%clk 0:00:11.3]} 40. Rg8
{[%clk 0:00:03]} 40... Bh6 {[%clk 0:00:09.2]} 41. Nd2 {[%clk 0:00:03]} 41... Rc7
{[%clk 0:00:08.5]} 42. Rh8 {[%clk 0:00:02.7]} 42... Bg7 {[%clk 0:00:08.1]} 43.
Rh4 {[%clk 0:00:03]} 43... f6 {[%clk 0:00:08.4]} 44. exf6 {[%clk 0:00:02.9]}
44... Bxf6 {[%clk 0:00:09.3]} 45. Nb1 {[%clk 0:00:03.2]} 45... d4 {[%clk
0:00:09]} 46. cxd4 {[%clk 0:00:03.1]} 46... Bxh4 {[%clk 0:00:09.6]} 47. Kb3
{[%clk 0:00:04]} 47... Bxg3 {[%clk 0:00:09.6]} 0-1

[Event "Late-Titled-Tuesday-Blitz-January-30-2024"]
[Site "Chess.com"]
[Date "2024.01.30"]
[Round "4"]
[White "ATM622"]
[Black "familijatop71"]
[Result "1-0"]
[WhiteElo "2465"]
[BlackElo "2231"]
[TimeControl "180+1"]
[EndTime "14:39:15 PST"]
[Termination "ATM622 won on time"]

1. d4 {[%clk 0:03:00.9]} 1... d5 {[%clk 0:02:59.6]} 2. c4 {[%clk 0:02:59.8]}
2... e6 {[%clk 0:02:59]} 3. Nf3 {[%clk 0:02:58.5]} 3... Nf6 {[%clk 0:02:59.5]}
4. g3 {[%clk 0:02:58.2]} 4... Be7 {[%clk 0:03:00]} 5. Bg2 {[%clk 0:02:58.5]}
5... O-O {[%clk 0:03:00.7]} 6. O-O {[%clk 0:02:58.6]} 6... dxc4 {[%clk
0:03:01.3]} 7. Ne5 {[%clk 0:02:58.1]} 7... c5 {[%clk 0:03:01.1]} 8. dxc5 {[%clk
0:02:57.1]} 8... Qc7 {[%clk 0:03:01]} 9. Nxc4 {[%clk 0:02:57.7]} 9... Rd8 {[%clk
0:03:01.5]} 10. Qc2 {[%clk 0:02:57.1]} 10... Nc6 {[%clk 0:03:01.6]} 11. e3
{[%clk 0:02:38.9]} 11... Bxc5 {[%clk 0:02:35.6]} 12. a3 {[%clk 0:02:35.9]} 12...
a5 {[%clk 0:02:21.6]} 13. Nc3 {[%clk 0:02:33.2]} 13... Be7 {[%clk 0:02:06.7]}
14. Rd1 {[%clk 0:02:22.5]} 14... Rxd1+ {[%clk 0:02:02.6]} 15. Qxd1 {[%clk
0:02:21.6]} 15... Ne5 {[%clk 0:01:58.4]} 16. Nxe5 {[%clk 0:02:15.9]} 16... Qxe5
{[%clk 0:01:58.1]} 17. e4 {[%clk 0:02:16.5]} 17... h6 {[%clk 0:01:41.6]} 18. Bf4
{[%clk 0:02:09.9]} 18... Qc5 {[%clk 0:01:39.1]} 19. Be3 {[%clk 0:02:06.6]} 19...
Qc7 {[%clk 0:01:27.3]} 20. Rc1 {[%clk 0:01:53.7]} 20... Qd7 {[%clk 0:00:58.6]}
21. Qc2 {[%clk 0:01:48.8]} 21... Ng4 {[%clk 0:00:45.7]} 22. Bb6 {[%clk
0:01:04.9]} 22... Bd8 {[%clk 0:00:37.9]} 23. Rd1 {[%clk 0:01:03.6]} 23... Bxb6
{[%clk 0:00:34.6]} 24. Rxd7 {[%clk 0:01:02.7]} 24... Bxd7 {[%clk 0:00:35.2]} 25.
Nd1 {[%clk 0:01:00.5]} 25... Rc8 {[%clk 0:00:33.8]} 26. Qd2 {[%clk 0:00:58.6]}
26... Bc6 {[%clk 0:00:26.8]} 27. h3 {[%clk 0:00:53.2]} 27... Ne5 {[%clk
0:00:25.5]} 28. b3 {[%clk 0:00:38.9]} 28... Rd8 {[%clk 0:00:25.5]} 29. Qc2
{[%clk 0:00:38]} 29... Nd3 {[%clk 0:00:23.1]} 30. Qe2 {[%clk 0:00:16.4]} 30...
Nc1 {[%clk 0:00:18.1]} 31. Qc2 {[%clk 0:00:16.1]} 31... Nd3 {[%clk 0:00:17.3]}
32. Qc3 {[%clk 0:00:11.9]} 32... e5 {[%clk 0:00:08.4]} 33. Ne3 {[%clk
0:00:11.1]} 33... f6 {[%clk 0:00:06.5]} 34. Nd5 {[%clk 0:00:11.1]} 34... Bxd5
{[%clk 0:00:06]} 35. Qxd3 {[%clk 0:00:09.6]} 35... Bc6 {[%clk 0:00:05.5]} 36.
Qc2 {[%clk 0:00:09.3]} 36... Kf7 {[%clk 0:00:04.5]} 37. Bf1 {[%clk 0:00:09.1]}
37... Rd4 {[%clk 0:00:04.2]} 38. Bc4+ {[%clk 0:00:09.3]} 38... Kf8 {[%clk
0:00:02.8]} 39. Bd3 {[%clk 0:00:09.6]} 39... Rd6 {[%clk 0:00:02.6]} 40. b4
{[%clk 0:00:09.1]} 40... axb4 {[%clk 0:00:02.6]} 41. axb4 {[%clk 0:00:10]} 41...
Rd8 {[%clk 0:00:02.6]} 42. b5 {[%clk 0:00:10.4]} 42... Bd7 {[%clk 0:00:02.5]}
43. h4 {[%clk 0:00:10.2]} 43... Be6 {[%clk 0:00:02.8]} 44. Qc3 {[%clk
0:00:09.1]} 44... Rc8 {[%clk 0:00:02.5]} 45. Qb4+ {[%clk 0:00:09.3]} 45... Kg8
{[%clk 0:00:02.1]} 46. Kg2 {[%clk 0:00:06.3]} 46... Bd4 {[%clk 0:00:02.3]} 47.
Qd6 {[%clk 0:00:06.5]} 1-0

[Event "Late-Titled-Tuesday-Blitz-January-30-2024"]
[Site "Chess.com"]
[Date "2024.01.30"]
[Round "4"]
[White "carloseduar100"]
[Black "Tomytoteph"]
[Result "0-1"]
[WhiteElo "2315"]
[BlackElo "2624"]
[TimeControl "180+1"]
[EndTime "14:39:18 PST"]
[Termination "Tomytoteph won by resignation"]

1. e4 {[%clk 0:03:00.5]} 1... c5 {[%clk 0:02:53.8]} 2. Nf3 {[%clk 0:03:00.6]}
2... g6 {[%clk 0:02:54.7]} 3. g3 {[%clk 0:03:01.4]} 3... Bg7 {[%clk 0:02:54.7]}
4. Bg2 {[%clk 0:03:02.3]} 4... Nf6 {[%clk 0:02:54.7]} 5. d3 {[%clk 0:03:02.5]}
5... d5 {[%clk 0:02:54.6]} 6. Nbd2 {[%clk 0:03:01.4]} 6... dxe4 {[%clk
0:02:53.6]} 7. dxe4 {[%clk 0:03:01.4]} 7... Nc6 {[%clk 0:02:53.8]} 8. O-O {[%clk
0:03:01.6]} 8... O-O {[%clk 0:02:54.2]} 9. c3 {[%clk 0:03:02]} 9... b6 {[%clk
0:02:53.6]} 10. Re1 {[%clk 0:03:02.3]} 10... Bb7 {[%clk 0:02:53.5]} 11. e5
{[%clk 0:03:02.4]} 11... Nd5 {[%clk 0:02:53.6]} 12. e6 {[%clk 0:02:56.3]} 12...
f6 {[%clk 0:02:52.8]} 13. Nc4 {[%clk 0:02:50.6]} 13... Ba6 {[%clk 0:02:50]} 14.
Ne3 {[%clk 0:02:48.4]} 14... Nxe3 {[%clk 0:02:48.1]} 15. Bxe3 {[%clk 0:02:49.3]}
15... Qc8 {[%clk 0:02:42]} 16. Nd2 {[%clk 0:02:35]} 16... Bb7 {[%clk 0:02:41.3]}
17. a3 {[%clk 0:02:13.6]} 17... Rd8 {[%clk 0:02:39.5]} 18. Qc2 {[%clk
0:02:11.5]} 18... Ne5 {[%clk 0:02:38]} 19. Bxb7 {[%clk 0:02:08.4]} 19... Qxb7
{[%clk 0:02:38.9]} 20. f4 {[%clk 0:02:06.6]} 20... Rxd2 {[%clk 0:02:26.9]} 21.
Bxd2 {[%clk 0:02:07.5]} 21... Nf3+ {[%clk 0:02:27.5]} 22. Kf2 {[%clk 0:02:08.2]}
22... Nxe1 {[%clk 0:02:23.5]} 23. Rxe1 {[%clk 0:02:08.1]} 23... Rd8 {[%clk
0:02:24.1]} 24. Bc1 {[%clk 0:02:03.7]} 24... Qd5 {[%clk 0:02:21.8]} 25. Qe4
{[%clk 0:02:01.4]} 25... f5 {[%clk 0:02:20.3]} 26. Qxd5 {[%clk 0:02:00.6]} 26...
Rxd5 {[%clk 0:02:21.2]} 27. Re2 {[%clk 0:01:48]} 27... Kf8 {[%clk 0:02:14.5]}
28. Rd2 {[%clk 0:01:48]} 28... Rxd2+ {[%clk 0:02:10.8]} 29. Bxd2 {[%clk
0:01:48.3]} 29... Ke8 {[%clk 0:02:11.7]} 30. b4 {[%clk 0:01:48.4]} 30... Kd8
{[%clk 0:02:11.9]} 31. c4 {[%clk 0:01:45]} 31... Bd4+ {[%clk 0:02:06.5]} 32. Ke2
{[%clk 0:01:40]} 32... Kc7 {[%clk 0:02:05.5]} 33. bxc5 {[%clk 0:01:38.3]} 33...
Bxc5 {[%clk 0:02:05.3]} 34. a4 {[%clk 0:01:36.2]} 34... Kd6 {[%clk 0:02:05.1]}
35. a5 {[%clk 0:01:36.6]} 35... bxa5 {[%clk 0:02:03.5]} 36. Bxa5 {[%clk
0:01:36.6]} 36... Kxe6 {[%clk 0:02:03.7]} 37. h3 {[%clk 0:01:35.6]} 37... a6
{[%clk 0:01:57.4]} 38. Kf3 {[%clk 0:01:35.3]} 38... Kd6 {[%clk 0:01:56.6]} 39.
g4 {[%clk 0:01:31.5]} 39... Ba3 {[%clk 0:01:56.5]} 40. Bd8 {[%clk 0:01:25.7]}
40... Kd7 {[%clk 0:01:53.1]} 41. Ba5 {[%clk 0:01:24.3]} 41... Kc6 {[%clk
0:01:53.7]} 42. Bd8 {[%clk 0:01:22.8]} 42... Bb4 {[%clk 0:01:53.8]} 43. Ke3
{[%clk 0:01:20.2]} 43... fxg4 {[%clk 0:01:53]} 44. hxg4 {[%clk 0:01:20.3]} 44...
h5 {[%clk 0:01:50.1]} 45. g5 {[%clk 0:01:18.4]} 45... a5 {[%clk 0:01:47.7]} 46.
f5 {[%clk 0:01:15.5]} 46... gxf5 {[%clk 0:01:47.4]} 47. g6 {[%clk 0:01:15.6]}
47... Bc3 {[%clk 0:01:46]} 48. Bxe7 {[%clk 0:01:15.8]} 48... a4 {[%clk 0:01:38]}
49. Kf4 {[%clk 0:01:15.7]} 49... h4 {[%clk 0:01:32.3]} 50. Bf8 {[%clk
0:01:00.9]} 50... Kd7 {[%clk 0:00:37.7]} 51. g7 {[%clk 0:00:57.7]} 51... Bxg7
{[%clk 0:00:37.9]} 52. Bxg7 {[%clk 0:00:58.6]} 52... a3 {[%clk 0:00:38.5]} 53.
Bd4 {[%clk 0:00:49.1]} 53... a2 {[%clk 0:00:37.7]} 54. Kf3 {[%clk 0:00:42.8]}
54... Kc6 {[%clk 0:00:35.2]} 55. Kg2 {[%clk 0:00:42.7]} 55... f4 {[%clk
0:00:35.2]} 56. c5 {[%clk 0:00:30.9]} 56... Kd5 {[%clk 0:00:35.2]} 57. Ba1
{[%clk 0:00:26]} 57... Kxc5 {[%clk 0:00:35.3]} 58. Kf3 {[%clk 0:00:25.4]} 58...
h3 {[%clk 0:00:35.3]} 59. Kf2 {[%clk 0:00:25.8]} 59... Kc4 {[%clk 0:00:35.7]}
60. Kg1 {[%clk 0:00:26.2]} 60... f3 {[%clk 0:00:35.6]} 61. Kf2 {[%clk
0:00:26.4]} 61... h2 {[%clk 0:00:35.4]} 0-1

[Event "Late-Titled-Tuesday-Blitz-January-30-2024"]
[Site "Chess.com"]
[Date "2024.01.30"]
[Round "4"]
[White "Binary010"]
[Black "jsdbv18"]
[Result "1/2-1/2"]
[WhiteElo "2905"]
[BlackElo "2613"]
[TimeControl "180+1"]
[EndTime "14:39:19 PST"]
[Termination "Game drawn by repetition"]

1. e4 {[%clk 0:03:00.9]} 1... c5 {[%clk 0:02:17.2]} 2. Nf3 {[%clk 0:02:59.5]}
2... d6 {[%clk 0:02:17.3]} 3. d4 {[%clk 0:02:58.3]} 3... cxd4 {[%clk 0:02:18.2]}
4. Nxd4 {[%clk 0:02:58.6]} 4... Nf6 {[%clk 0:02:18.9]} 5. Nc3 {[%clk 0:02:59.2]}
5... g6 {[%clk 0:02:19.2]} 6. Be3 {[%clk 0:02:58.9]} 6... Bg7 {[%clk 0:02:19.9]}
7. f3 {[%clk 0:02:59.5]} 7... Nc6 {[%clk 0:02:19.5]} 8. Qd2 {[%clk 0:02:59.9]}
8... O-O {[%clk 0:02:16.9]} 9. O-O-O {[%clk 0:02:59.7]} 9... d5 {[%clk 0:02:11]}
10. exd5 {[%clk 0:02:59.7]} 10... Nxd5 {[%clk 0:02:11]} 11. Nxc6 {[%clk
0:03:00.4]} 11... bxc6 {[%clk 0:02:11.4]} 12. Bd4 {[%clk 0:03:01]} 12... Bxd4
{[%clk 0:02:10.6]} 13. Qxd4 {[%clk 0:03:01.9]} 13... Qb6 {[%clk 0:02:11.1]} 14.
Na4 {[%clk 0:03:00.3]} 14... Qc7 {[%clk 0:02:10.4]} 15. g3 {[%clk 0:02:59.7]}
15... Rb8 {[%clk 0:02:06.2]} 16. a3 {[%clk 0:02:27.5]} 16... Qa5 {[%clk
0:01:39.8]} 17. Nc5 {[%clk 0:02:13.6]} 17... e5 {[%clk 0:01:03]} 18. Qf2 {[%clk
0:02:11.7]} 18... Bf5 {[%clk 0:00:36]} 19. Nb3 {[%clk 0:01:56.4]} 19... Qa4
{[%clk 0:00:32.5]} 20. Bd3 {[%clk 0:01:51]} 20... Bxd3 {[%clk 0:00:29.1]} 21.
Rxd3 {[%clk 0:01:51.9]} 21... Rfe8 {[%clk 0:00:26.7]} 22. Re1 {[%clk 0:01:35.2]}
22... e4 {[%clk 0:00:17.5]} 23. Rd4 {[%clk 0:00:52.7]} 23... e3 {[%clk 0:00:10]}
24. Rxe3 {[%clk 0:00:51.3]} 24... Qa6 {[%clk 0:00:08.9]} 25. Rxe8+ {[%clk
0:00:48.4]} 25... Rxe8 {[%clk 0:00:09]} 26. Re4 {[%clk 0:00:46.9]} 26... Rb8
{[%clk 0:00:08.7]} 27. Qe2 {[%clk 0:00:42.8]} 27... Qb6 {[%clk 0:00:08.4]} 28.
Kb1 {[%clk 0:00:36.1]} 28... a5 {[%clk 0:00:07.5]} 29. Re8+ {[%clk 0:00:33.1]}
29... Rxe8 {[%clk 0:00:07.8]} 30. Qxe8+ {[%clk 0:00:34]} 30... Kg7 {[%clk
0:00:08.7]} 31. Qe5+ {[%clk 0:00:33.2]} 31... Kg8 {[%clk 0:00:09.3]} 32. Qd4
{[%clk 0:00:31.3]} 32... Qb5 {[%clk 0:00:09.6]} 33. Ka2 {[%clk 0:00:24.1]} 33...
Qe2 {[%clk 0:00:07.6]} 34. c4 {[%clk 0:00:19.9]} 34... Ne3 {[%clk 0:00:05.3]}
35. Nxa5 {[%clk 0:00:16.4]} 35... Qxf3 {[%clk 0:00:02.6]} 36. Nb3 {[%clk
0:00:09.6]} 36... h5 {[%clk 0:00:03.2]} 37. a4 {[%clk 0:00:09.1]} 37... Qe2
{[%clk 0:00:02.8]} 38. Nd2 {[%clk 0:00:07.9]} 38... Nc2 {[%clk 0:00:02.4]} 39.
Qc3 {[%clk 0:00:07.2]} 39... Qd1 {[%clk 0:00:02.9]} 40. Nb1 {[%clk 0:00:03.9]}
40... Nd4 {[%clk 0:00:02]} 41. a5 {[%clk 0:00:02.9]} 41... c5 {[%clk 0:00:02.1]}
42. Na3 {[%clk 0:00:02.1]} 42... Qa4 {[%clk 0:00:02.5]} 43. Kb1 {[%clk
0:00:01.6]} 43... Qd1+ {[%clk 0:00:02.3]} 44. Ka2 {[%clk 0:00:02.3]} 44... Qa4
{[%clk 0:00:02.9]} 45. Qd3 {[%clk 0:00:02.8]} 45... Qxa5 {[%clk 0:00:02.6]} 46.
Qe4 {[%clk 0:00:03.5]} 46... Qb4 {[%clk 0:00:02.8]} 47. Qe8+ {[%clk 0:00:04]}
47... Kg7 {[%clk 0:00:03]} 48. Qe5+ {[%clk 0:00:04.9]} 48... Kg8 {[%clk
0:00:03.7]} 49. Qe8+ {[%clk 0:00:05.2]} 49... Kg7 {[%clk 0:00:04]} 50. Qe5+
{[%clk 0:00:05.8]} 50... Kg8 {[%clk 0:00:04.3]} 51. Qd5 {[%clk 0:00:06.4]} 51...
Qb3+ {[%clk 0:00:04.5]} 52. Ka1 {[%clk 0:00:06.3]} 52... Qd1+ {[%clk 0:00:04.7]}
53. Ka2 {[%clk 0:00:07]} 53... Qb3+ {[%clk 0:00:05.3]} 54. Ka1 {[%clk
0:00:07.7]} 54... Qd1+ {[%clk 0:00:05.9]} 55. Ka2 {[%clk 0:00:08.3]} 55... Qb3+
{[%clk 0:00:06.5]} 1/2-1/2

[Event "Late-Titled-Tuesday-Blitz-January-30-2024"]
[Site "Chess.com"]
[Date "2024.01.30"]
[Round "4"]
[White "Meri-Arabidze"]
[Black "Airquake"]
[Result "1-0"]
[WhiteElo "2751"]
[BlackElo "2545"]
[TimeControl "180+1"]
[EndTime "14:39:20 PST"]
[Termination "Meri-Arabidze won on time"]

1. Nf3 {[%clk 0:03:00.9]} 1... c5 {[%clk 0:02:59]} 2. b3 {[%clk 0:03:01.3]} 2...
Nf6 {[%clk 0:02:57.7]} 3. Bb2 {[%clk 0:03:01.2]} 3... d5 {[%clk 0:02:58.2]} 4.
e3 {[%clk 0:03:01.3]} 4... e6 {[%clk 0:02:58.7]} 5. d4 {[%clk 0:02:58.3]} 5...
Nc6 {[%clk 0:02:57]} 6. a3 {[%clk 0:02:58.3]} 6... Be7 {[%clk 0:02:54.2]} 7. Bd3
{[%clk 0:02:58.3]} 7... O-O {[%clk 0:02:54.2]} 8. Nbd2 {[%clk 0:02:58.4]} 8...
b6 {[%clk 0:02:52.8]} 9. O-O {[%clk 0:02:58.4]} 9... Bb7 {[%clk 0:02:53]} 10.
Ne5 {[%clk 0:02:56.7]} 10... Nd7 {[%clk 0:02:42.6]} 11. f4 {[%clk 0:02:54.4]}
11... f5 {[%clk 0:02:32.7]} 12. Ndf3 {[%clk 0:02:47]} 12... Nf6 {[%clk
0:02:30.2]} 13. Ng5 {[%clk 0:02:43.4]} 13... Qc8 {[%clk 0:02:25.2]} 14. dxc5
{[%clk 0:02:13.7]} 14... Bxc5 {[%clk 0:02:18.8]} 15. Qe2 {[%clk 0:02:13.5]}
15... Nxe5 {[%clk 0:02:04.3]} 16. fxe5 {[%clk 0:02:09.8]} 16... Ne4 {[%clk
0:01:56.5]} 17. Bxe4 {[%clk 0:02:00.6]} 17... dxe4 {[%clk 0:01:53.3]} 18. Bd4
{[%clk 0:01:48.9]} 18... Bxd4 {[%clk 0:01:24.5]} 19. exd4 {[%clk 0:01:49.8]}
19... h6 {[%clk 0:01:25.3]} 20. Nh3 {[%clk 0:01:49.5]} 20... Qc3 {[%clk
0:01:25.9]} 21. Rad1 {[%clk 0:01:43.3]} 21... Rac8 {[%clk 0:01:24.8]} 22. Nf4
{[%clk 0:01:41.4]} 22... Rfe8 {[%clk 0:01:14.2]} 23. Rd2 {[%clk 0:01:09.7]}
23... g5 {[%clk 0:00:56.9]} 24. Nh5 {[%clk 0:01:07.1]} 24... Red8 {[%clk
0:00:57]} 25. Nf6+ {[%clk 0:01:04.7]} 25... Kg7 {[%clk 0:00:57.2]} 26. Nh5+
{[%clk 0:00:32.7]} 26... Kg6 {[%clk 0:00:56.6]} 27. g4 {[%clk 0:00:32.9]} 27...
Rxd4 {[%clk 0:00:45.7]} 28. Rfd1 {[%clk 0:00:16.9]} 28... Rxd2 {[%clk
0:00:37.7]} 29. Rxd2 {[%clk 0:00:17.8]} 29... Qa1+ {[%clk 0:00:23]} 30. Rd1
{[%clk 0:00:17.6]} 30... Qxe5 {[%clk 0:00:23.9]} 31. Rd7 {[%clk 0:00:17.2]}
31... Rc7 {[%clk 0:00:08.9]} 32. Rd8 {[%clk 0:00:08.8]} 32... e3 {[%clk
0:00:08.7]} 33. h3 {[%clk 0:00:04.5]} 33... f4 {[%clk 0:00:05.4]} 34. Rg8+
{[%clk 0:00:02.6]} 34... Kh7 {[%clk 0:00:05.4]} 35. Rb8 {[%clk 0:00:02.5]} 35...
Qa1+ {[%clk 0:00:05.2]} 36. Qf1 {[%clk 0:00:01.6]} 36... Qxf1+ {[%clk 0:00:05]}
37. Kxf1 {[%clk 0:00:02.5]} 37... Be4 {[%clk 0:00:03.9]} 38. c4 {[%clk
0:00:02.8]} 38... Kg6 {[%clk 0:00:03.7]} 39. Rg8+ {[%clk 0:00:02.3]} 39... Kh7
{[%clk 0:00:03]} 40. Re8 {[%clk 0:00:02.9]} 40... Bg6 {[%clk 0:00:02.9]} 41.
Rxe6 {[%clk 0:00:02.5]} 41... Rd7 {[%clk 0:00:03.4]} 42. Nf6+ {[%clk 0:00:02.5]}
42... Kg7 {[%clk 0:00:04]} 43. Nxd7 {[%clk 0:00:03.4]} 43... Bd3+ {[%clk
0:00:04.4]} 44. Ke1 {[%clk 0:00:03.3]} 44... Bc2 {[%clk 0:00:03.9]} 45. Re5
{[%clk 0:00:03.6]} 45... Bxb3 {[%clk 0:00:04]} 46. c5 {[%clk 0:00:04.1]} 46...
b5 {[%clk 0:00:04.2]} 47. c6 {[%clk 0:00:04.3]} 47... Bc4 {[%clk 0:00:03.6]} 48.
c7 {[%clk 0:00:04.6]} 48... f3 {[%clk 0:00:04.2]} 49. Rxe3 {[%clk 0:00:05]} 1-0

[Event "Late-Titled-Tuesday-Blitz-January-30-2024"]
[Site "Chess.com"]
[Date "2024.01.30"]
[Round "4"]
[White "Hamisandwich"]
[Black "jlf287"]
[Result "1-0"]
[WhiteElo "2711"]
[BlackElo "2518"]
[TimeControl "180+1"]
[EndTime "14:39:20 PST"]
[Termination "Hamisandwich won by resignation"]

1. Nc3 {[%clk 0:03:00.9]} 1... d5 {[%clk 0:02:58.1]} 2. d3 {[%clk 0:02:58.7]}
2... Nf6 {[%clk 0:02:57.3]} 3. Bg5 {[%clk 0:02:55.6]} 3... e6 {[%clk 0:02:47.5]}
4. e4 {[%clk 0:02:48]} 4... Be7 {[%clk 0:02:40.7]} 5. e5 {[%clk 0:02:37.4]} 5...
Nfd7 {[%clk 0:02:39.7]} 6. Bxe7 {[%clk 0:02:37.7]} 6... Qxe7 {[%clk 0:02:40.4]}
7. f4 {[%clk 0:02:38.6]} 7... a6 {[%clk 0:02:35.2]} 8. Nf3 {[%clk 0:02:34.4]}
8... c5 {[%clk 0:02:35.2]} 9. Be2 {[%clk 0:02:23.1]} 9... Nc6 {[%clk 0:02:35.5]}
10. O-O {[%clk 0:02:23]} 10... b5 {[%clk 0:02:30.1]} 11. Qe1 {[%clk 0:02:19.6]}
11... Bb7 {[%clk 0:02:26.9]} 12. a3 {[%clk 0:02:14.1]} 12... f6 {[%clk
0:02:22.3]} 13. Qg3 {[%clk 0:02:04.2]} 13... O-O-O {[%clk 0:02:16.7]} 14. Nd1
{[%clk 0:01:47.2]} 14... Kb8 {[%clk 0:02:10.9]} 15. c3 {[%clk 0:01:38.5]} 15...
fxe5 {[%clk 0:01:54.2]} 16. fxe5 {[%clk 0:01:37.3]} 16... Rdf8 {[%clk 0:01:52]}
17. d4 {[%clk 0:01:36.4]} 17... Nb6 {[%clk 0:01:44.9]} 18. Ne3 {[%clk
0:01:20.8]} 18... Bc8 {[%clk 0:01:35.7]} 19. b4 {[%clk 0:01:14.9]} 19... c4
{[%clk 0:01:29.1]} 20. Bd1 {[%clk 0:01:08.6]} 20... Bd7 {[%clk 0:01:24.8]} 21.
Bc2 {[%clk 0:00:59.2]} 21... Kb7 {[%clk 0:01:20.6]} 22. h4 {[%clk 0:00:46.3]}
22... Be8 {[%clk 0:01:19.3]} 23. Qg5 {[%clk 0:00:43.6]} 23... h6 {[%clk
0:01:09.6]} 24. Qxe7+ {[%clk 0:00:42.4]} 24... Nxe7 {[%clk 0:01:09.8]} 25. g4
{[%clk 0:00:40.5]} 25... Bg6 {[%clk 0:01:07.9]} 26. Bd1 {[%clk 0:00:23.2]} 26...
Bd3 {[%clk 0:01:07.5]} 27. Rf2 {[%clk 0:00:23]} 27... Rf4 {[%clk 0:01:03]} 28.
Ne1 {[%clk 0:00:20.5]} 28... Rxf2 {[%clk 0:01:01.3]} 29. Kxf2 {[%clk 0:00:21.4]}
29... Rf8+ {[%clk 0:01:01.9]} 30. Kg3 {[%clk 0:00:22.1]} 30... g5 {[%clk
0:00:52.3]} 31. h5 {[%clk 0:00:20.4]} 31... Rf4 {[%clk 0:00:49.9]} 32. N1g2
{[%clk 0:00:20.7]} 32... Rf7 {[%clk 0:00:46.2]} 33. a4 {[%clk 0:00:21.4]} 33...
bxa4 {[%clk 0:00:38.2]} 34. Bxa4 {[%clk 0:00:22.3]} 34... Nxa4 {[%clk
0:00:39.1]} 35. Rxa4 {[%clk 0:00:22.3]} 35... Be4 {[%clk 0:00:40]} 36. Ra2
{[%clk 0:00:19.6]} 36... Rf3+ {[%clk 0:00:39.6]} 37. Kh2 {[%clk 0:00:20.3]}
37... Nc6 {[%clk 0:00:35.7]} 38. Kg1 {[%clk 0:00:19.9]} 38... Na7 {[%clk
0:00:35.4]} 39. Rf2 {[%clk 0:00:19.3]} 39... Nb5 {[%clk 0:00:30]} 40. Rxf3
{[%clk 0:00:19]} 40... Bxf3 {[%clk 0:00:30.9]} 41. Ne1 {[%clk 0:00:19.8]} 41...
Be4 {[%clk 0:00:24.7]} 42. Nd1 {[%clk 0:00:20]} 42... Bb1 {[%clk 0:00:22.7]} 43.
Kf2 {[%clk 0:00:20]} 43... Ba2 {[%clk 0:00:23.2]} 44. Ng2 {[%clk 0:00:19.4]}
44... Bb3 {[%clk 0:00:18.7]} 45. Nge3 {[%clk 0:00:19.7]} 45... Kb6 {[%clk
0:00:19.1]} 46. Ke1 {[%clk 0:00:19.5]} 46... a5 {[%clk 0:00:19.5]} 47. bxa5+
{[%clk 0:00:18.7]} 47... Kxa5 {[%clk 0:00:20.4]} 48. Kd2 {[%clk 0:00:19.4]}
48... Ka4 {[%clk 0:00:19.3]} 49. Nf2 {[%clk 0:00:18.3]} 49... Ka3 {[%clk
0:00:16.7]} 50. Nh3 {[%clk 0:00:18.6]} 50... Kb2 {[%clk 0:00:09.4]} 51. Nxg5
{[%clk 0:00:19]} 51... hxg5 {[%clk 0:00:10]} 52. h6 {[%clk 0:00:19.3]} 52... Ba2
{[%clk 0:00:10.6]} 53. h7 {[%clk 0:00:19.5]} 53... Bb1 {[%clk 0:00:09]} 1-0